Departmental Family,Entity,Transaction Reference,Payment Date,Account Name,Expense Area,Description,Description,Base Amount
BIS,NMO,90372105,18/07/2014,Building Construction ,Estates ,Amey Community Ltd,Estates repairs and renewals ,"-1,379.62"
BIS,NMO,90381988b,30/10/2014,Building Maintenance ,Estates ,Amey Community Ltd,Estates repairs and renewals ,"10,183.92"
BIS,NMO,90381988b,30/10/2014,Building Construction ,Estates ,Amey Community Ltd,Estates repairs and renewals ,"-12,220.71"
BIS,NMO,90390549,12/12/2014,Building Maintenance ,Estates ,Amey Community Ltd,Estates repairs and renewals ,"4,311.31"
BIS,NMO,90390549,12/12/2014,Building Construction ,Estates ,Amey Community Ltd,Estates repairs and renewals ,"-5,173.57"
BIS,NMO,90394292,16/01/2015,Building Maintenance ,Estates ,Amey Community Ltd,Estates repairs and renewals ,"30,179.14"
BIS,NMO,90394292,16/01/2015,Building Construction ,Estates ,Amey Community Ltd,Estates repairs and renewals ,"-36,214.97"
BIS,NMO,FSC0012701,22/01/2015,Building Maintenance ,Estates ,Environment Agency ,Permit for waste disposal,591.91
BIS,NMO,FSC0012701,22/01/2015,Building Construction ,Estates ,Environment Agency ,Permit for waste disposal,-591.91
BIS,NMO,5550,06/03/2015,Website Maintenance ,Corporate Services ,ActiveIS Limited,NMO webiste hosting ,838.80
BIS,NMO,5542,06/03/2015,Website Maintenance ,Enforcement ,ActiveIS Limited,RoHS website hosting ,501.60
BIS,NMO,28212746,06/03/2015,Building Advisors,Estates ,AECOM Prof Services LLP,Cost Management services,"7,500.00"
BIS,NMO,28212735,06/03/2015,Building Advisors,Estates ,AECOM Prof Services LLP,Project Management services ,"11,250.00"
BIS,NMO,90400167,06/03/2015,Hospitality,Corporate Services ,Amey Community Ltd,Catering for meetings,30.66
BIS,NMO,90400689,06/03/2015,Hospitality,Programmes ,Amey Community Ltd,Catering for meetings,"1,044.86"
BIS,NMO,90400316,06/03/2015,Building Service Charges ,Estates ,Amey Community Ltd,FM contract ,"23,259.08"
BIS,NMO,90400309,06/03/2015,Building Service Charges ,Estates ,Amey Community Ltd,FM contract ,"12,756.04"
BIS,NMO,90400316,06/03/2015,Building Service Charges ,Estates ,Amey Community Ltd,FM contract ,"333,071.52"
BIS,NMO,90401155,06/03/2015,Plant & Machinery ,Estates ,Amey Community Ltd,Estates repairs and renewals ,"16,233.36"
BIS,NMO,90399653,06/03/2015,Plant & Machinery ,Estates ,Amey Community Ltd,Estates repairs and renewals ,"18,889.97"
BIS,NMO,90399006,06/03/2015,Plant & Machinery ,Estates ,Amey Community Ltd,Estates repairs and renewals ,"98,613.40"
BIS,NMO,90399005,06/03/2015,Plant & Machinery ,Estates ,Amey Community Ltd,Estates repairs and renewals ,"102,685.34"
BIS,NMO,90399004,06/03/2015,Plant & Machinery ,Estates ,Amey Community Ltd,Estates repairs and renewals ,"74,178.43"
BIS,NMO,90399011,06/03/2015,Plant & Machinery ,Estates ,Amey Community Ltd,Estates repairs and renewals ,"103,506.19"
BIS,NMO,90399010,06/03/2015,Plant & Machinery ,Estates ,Amey Community Ltd,Estates repairs and renewals ,"73,631.33"
BIS,NMO,90399009,06/03/2015,Plant & Machinery ,Estates ,Amey Community Ltd,Estates repairs and renewals ,"90,187.86"
BIS,NMO,90399008,06/03/2015,Plant & Machinery ,Estates ,Amey Community Ltd,Estates repairs and renewals ,"93,879.95"
BIS,NMO,90399000,06/03/2015,Building Maintenance ,Estates ,Amey Community Ltd,Estates repairs and renewals ,"81,348.59"
BIS,NMO,90398978,06/03/2015,Building Maintenance ,Estates ,Amey Community Ltd,Estates repairs and renewals ,"9,449.72"
BIS,NMO,90400315,06/03/2015,Building Service Charges ,Estates ,Amey Community Ltd,Car park recharge ,829.83
BIS,NMO,90400413,06/03/2015,IT Software Licences & Maintenance ,Estates ,Amey Community Ltd,Estates repairs and renewals ,"4,138.04"
BIS,NMO,90400428,06/03/2015,Building Service Charges ,Estates ,Amey Community Ltd,Estates repairs and renewals ,265.34
BIS,NMO,90400422a,06/03/2015,Building Construction ,Estates ,Amey Community Ltd,Estates repairs and renewals ,946.15
BIS,NMO,90400426,06/03/2015,Building Construction ,Estates ,Amey Community Ltd,Estates repairs and renewals ,"5,981.17"
BIS,NMO,90401166,06/03/2015,Building Service Charges ,Estates ,Amey Community Ltd,Minor works,561.16
BIS,NMO,90400422b,06/03/2015,Building Construction ,Estates ,Amey Community Ltd,Estates repairs and renewals ,"42,820.88"
BIS,NMO,ILON988785,06/03/2015,Miscellaneous ,Corporate Services ,BPP Professional Services Limited,Training ,"1,482.20"
BIS,NMO,SILON98904,06/03/2015,Miscellaneous ,Corporate Services ,BPP Professional Services Limited,Training ,"1,247.21"
BIS,NMO,X63597,06/03/2015,Training ,Regulation ,Capita Business Services Ltd,Training ,209.00
BIS,NMO,8727,06/03/2015,Building Advisors,Estates ,CH2M Hill United Kingdom,Professional design services ,"35,580.00"
BIS,NMO,8726,06/03/2015,Building Advisors,Estates ,CH2M Hill United Kingdom,Professional design services ,"134,010.00"
BIS,NMO,8725,06/03/2015,Building Advisors,Estates ,CH2M Hill United Kingdom,Professional design services ,"9,639.60"
BIS,NMO,8775,06/03/2015,Building Advisors,Estates ,CH2M Hill United Kingdom,Professional design services ,"13,704.00"
BIS,NMO,8774,06/03/2015,Building Advisors,Estates ,CH2M Hill United Kingdom,Professional design services ,"18,000.00"
BIS,NMO,32072,06/03/2015,Calibrating Equipment ,Certification Services ,Electronic Test & Calibration,Equipment calibration,569.02
BIS,NMO,2356140349,06/03/2015,Car Hire & Leasing ,Utilities ,Hertz UK Limited,Car hire,77.88
BIS,NMO,2356162953,06/03/2015,Car Hire & Leasing ,Utilities ,Hertz UK Limited,Car hire,85.08
BIS,NMO,AC900377,06/03/2015,Conferences & Exhibitions ,Regulation ,IET Services Ltd,Metrology Seminar Conference ,-375.00
BIS,NMO,AC006774,06/03/2015,Conferences & Exhibitions ,Regulation ,IET Services Ltd,Metrology Seminar Conference ,"6,156.00"
BIS,NMO,63016,06/03/2015,Conferences & Exhibitions ,Programmes ,Lensbury,Conferences & exhibition services ,"3,164.57"
BIS,NMO,1315,06/03/2015,Contractors costs ,Certification Services ,LMCS,Auditing services ,488.40
BIS,NMO,02/03/15,06/03/2015,Telecommunications ,Corporate Services ,Maintel Europe Ltd,Calls & line rental,779.06
BIS,NMO,C10680,06/03/2015,NMS Science Programmes ,Programmes ,NPL Management Ltd,AIR Programme ,"308,013.03"
BIS,NMO,C10669,06/03/2015,NMS Science Programmes ,Programmes ,NPL Management Ltd,AIR Programme ,"237,931.50"
BIS,NMO,C10679,06/03/2015,NMS Science Programmes ,Programmes ,NPL Management Ltd,AIR Programme ,"128,238.55"
BIS,NMO,C10672,06/03/2015,NMS Science Programmes ,Programmes ,NPL Management Ltd,Chem & Bio Programme  ,"99,416.39"
BIS,NMO,C10688,06/03/2015,NMS Science Programmes ,Programmes ,NPL Management Ltd,Chem & Bio Programme  ,"366,243.70"
BIS,NMO,C10664,06/03/2015,NMS Science Programmes ,Programmes ,NPL Management Ltd,Chem & Bio Programme  ,"3,268.32"
BIS,NMO,C10682,06/03/2015,NMS Science Programmes ,Programmes ,NPL Management Ltd,Engineering & Flow Programme ,"326,113.66"
BIS,NMO,C10687,06/03/2015,NMS Science Programmes ,Programmes ,NPL Management Ltd,Engineering & Flow Programme ,"239,469.85"
BIS,NMO,C10673,06/03/2015,NMS Science Programmes ,Programmes ,NPL Management Ltd,Engineering & Flow Programme ,"49,318.43"
BIS,NMO,C10671,06/03/2015,NMS Science Programmes ,Programmes ,NPL Management Ltd,Engineering & Flow Programme ,"59,518.41"
BIS,NMO,123604,06/03/2015,Furniture,Estates ,NPL Management Ltd,Furniture,"3,986.52"
BIS,NMO,56046,06/03/2015,ICT & Office ,Estates ,NPL Management Ltd,Equipment for Wifi Expansion,"-148,396.32"
BIS,NMO,56045,06/03/2015,ICT & Office ,Estates ,NPL Management Ltd,Equipment for Wifi Expansion,"123,663.60"
BIS,NMO,INV3325,06/03/2015,Plant & Machinery ,Enforcement ,Niton UK Ltd,RoHS Lab equipment,"49,800.00"
BIS,NMO,91620186,06/03/2015,Contractors costs ,Regulation ,Nottinghamshire County Council,Contractors costs,"1,000.00"
BIS,NMO,O333072,06/03/2015,Contractors costs ,Certification Services ,Omega,Auditor travel costs ,826.36
BIS,NMO,O333493,06/03/2015,Contractors costs ,Certification Services ,Omega,Auditor travel costs ,"1,088.26"
BIS,NMO,O333543,06/03/2015,Contractors costs ,Certification Services ,Omega,Auditor travel costs ,399.81
BIS,NMO,331940,06/03/2015,Travel & Subsistence ,Enforcement ,Parker Cars Ltd,Taxis for staff,61.46
BIS,NMO,331940,06/03/2015,Travel & Subsistence ,Enforcement ,Parker Cars Ltd,Taxis for staff,71.79
BIS,NMO,331940,06/03/2015,Travel & Subsistence ,Enforcement ,Parker Cars Ltd,Taxis for staff,20.50
BIS,NMO,331940,06/03/2015,Travel & Subsistence ,Certification Services ,Parker Cars Ltd,Taxis for staff,85.06
BIS,NMO,0119,06/03/2015,Intangible Assets ,Certification Services ,Russell IT Solutions Ltd,Development of new system,"5,999.52"
BIS,NMO,1671031,06/03/2015,Courier Services,Certification Services ,Streetwise Couriers Surrey Ltd,Courier services ,212.18
BIS,NMO,07089455,06/03/2015,Courier Services,Certification Services ,Tnt International,Courier services,22.50
BIS,NMO,100,06/03/2015,Contractors costs ,Certification Services ,TSPL Consulting Ltd,Auditing services ,835.34
BIS,NMO,35.2-IV-25,09/03/2015,Contractors costs ,Regulation ,LBME (Landesbetrieb Mess-und Eichwesen NRW),Contractors costs,192.77
BIS,NMO,Cert/2015/3652,09/03/2015,OIML Certificate Registration Fees,Certification Services ,Organisation Internationale de Metrologie Legale,OIML Certificate registration fees,"4,040.96"
BIS,NMO,90398982,12/03/2015,Plant & Machinery ,Estates ,Amey Community Ltd,Estates repairs and renewals ,"30,111.04"
BIS,NMO,B 18440,12/03/2015,Miscellaneous ,Enforcement ,Auto Mobile Valet Limited,ROHS Car Servicing,95.83
BIS,NMO,576,12/03/2015,Contractors costs ,Certification Services ,D&J Services Limited,Auditing services ,562.53
BIS,NMO,HSC8526794,12/03/2015,Courier Services,Enforcement ,Dhl International (Uk) Ltd,Courier services,38.82
BIS,NMO,32161,12/03/2015,Calibrating Equipment ,Certification Services ,Electronic Test & Calibration,Equipment calibration,331.01
BIS,NMO,110453,12/03/2015,Calibrating Equipment ,Certification Services ,Environmental & Technical Services Ltd,Service Contract for environmental chambers,905.50
BIS,NMO,6840437,12/03/2015,IT Software Licences & Maintenance ,Corporate Services ,Hewlett - Packard Limited,IT Software Licences & Maintenance,"1,272.00"
BIS,NMO,J017731616,12/03/2015,Telecommunications ,Corporate Services ,Intercity Telecom Ltd,Mobile phone line rental & calls,599.08
BIS,NMO,14073,12/03/2015,Contractors costs ,Certification Services ,LegMetConsult,Auditing services ,458.55
BIS,NMO,C10691,12/03/2015,NMS Science Programmes ,Programmes ,NPL Management Ltd,Innovation R&D Programme ,"316,286.24"
BIS,NMO,C10681,12/03/2015,NMS Science Programmes ,Programmes ,NPL Management Ltd,Innovation R&D Programme ,"166,813.80"
BIS,NMO,C10676,12/03/2015,NMS Science Programmes ,Programmes ,NPL Management Ltd,Innovation R&D Programme ,"156,637.56"
BIS,NMO,C10663,12/03/2015,NMS Science Programmes ,Programmes ,NPL Management Ltd,Innovation R&D Programme ,"13,873.11"
BIS,NMO,C10690,12/03/2015,NMS Science Programmes ,Programmes ,NPL Management Ltd,Materials & Modelling Programme ,"256,798.91"
BIS,NMO,C10686,12/03/2015,NMS Science Programmes ,Programmes ,NPL Management Ltd,Materials & Modelling Programme ,"49,085.52"
BIS,NMO,C10667,12/03/2015,NMS Science Programmes ,Programmes ,NPL Management Ltd,Materials & Modelling Programme ,"192,698.97"
BIS,NMO,C10674,12/03/2015,NMS Science Programmes ,Programmes ,NPL Management Ltd,Materials & Modelling Programme ,"27,190.83"
BIS,NMO,C10689,12/03/2015,NMS Science Programmes ,Programmes ,NPL Management Ltd,Knowledge Exchange Programme ,"310,408.07"
BIS,NMO,C10670,12/03/2015,NMS Science Programmes ,Programmes ,NPL Management Ltd,EMT Programme ,"457,029.99"
BIS,NMO,C10666,12/03/2015,NMS Science Programmes ,Programmes ,NPL Management Ltd,EMT Programme ,"51,066.62"
BIS,NMO,1354321070,12/03/2015,Consultancy ,Change & Development ,PRICEWATERHOUSECOOPERS LLP,NPL project consultancy ,"18,910.00"
BIS,NMO,278750109,12/03/2015,Scientific Equipment ,Certification Services ,R S Components Limited,Scientific equipment ,73.57
BIS,NMO,L6676,12/03/2015,Furniture,Estates ,Rainbow Office Design Ltd,Furniture,"1,639.80"
BIS,NMO,07089436,12/03/2015,Courier Services,Enforcement ,Tnt International,Courier services,"1,375.00"
BIS,NMO,07089436,12/03/2015,Courier Services,Enforcement ,Tnt International,Courier services,"1,375.00"
BIS,NMO,7225114,19/03/2015,Laboratory Testing ,Enforcement ,Teknologisk Institut,Sample testing ,"11,250.00"
BIS,NMO,7224534,19/03/2015,Laboratory Testing ,Enforcement ,Teknologisk Institut,Sample testing ,"4,000.00"
BIS,NMO,7224538,19/03/2015,Laboratory Testing ,Enforcement ,Teknologisk Institut,Sample testing ,"1,000.00"
BIS,NMO,7224955,19/03/2015,Laboratory Testing ,Enforcement ,Teknologisk Institut,Sample testing ,"23,680.00"
BIS,NMO,90402583,20/03/2015,Building Construction ,Estates ,Amey Community Ltd,Estates repairs and renewals ,"31,825.22"
BIS,NMO,90402549,20/03/2015,Plant & Machinery ,Estates ,Amey Community Ltd,Estates repairs and renewals ,"32,639.84"
BIS,NMO,90402680,20/03/2015,Building Construction ,Estates ,Amey Community Ltd,Estates repairs and renewals ,36.00
BIS,NMO,90402131,20/03/2015,Building Construction ,Estates ,Amey Community Ltd,Estates repairs and renewals ,"56,030.15"
BIS,NMO,90401712,20/03/2015,Building Construction ,Estates ,Amey Community Ltd,Estates repairs and renewals ,"7,034.20"
BIS,NMO,90401994,20/03/2015,Building Construction ,Estates ,Amey Community Ltd,Estates repairs and renewals ,"1,512.85"
BIS,NMO,90401990,20/03/2015,Building Construction ,Estates ,Amey Community Ltd,Estates repairs and renewals ,996.59
BIS,NMO,90402337,20/03/2015,Building Construction ,Estates ,Amey Community Ltd,Estates repairs and renewals ,"8,104.10"
BIS,NMO,90402211,20/03/2015,Building Construction ,Estates ,Amey Community Ltd,Estates repairs and renewals ,149.26
BIS,NMO,90402540,20/03/2015,Building Construction ,Estates ,Amey Community Ltd,Estates repairs and renewals ,"10,786.75"
BIS,NMO,581,20/03/2015,Contractors costs ,Certification Services ,D&J Services Limited,Auditing services ,758.84
BIS,NMO,582,20/03/2015,Contractors costs ,Certification Services ,D&J Services Limited,Auditing services ,744.55
BIS,NMO,6630,20/03/2015,IT Services,Corporate Services ,Evolve Business Consultancy,IT Penetration testing ,"1,620.00"
BIS,NMO,8309732,20/03/2015,Consultancy ,Corporate Services ,Grant Thornton UK LLP,HR Consultancy,"2,960.00"
BIS,NMO,2356204241,20/03/2015,Car Hire & Leasing ,Certification Services ,Hertz UK Limited,Car hire,66.12
BIS,NMO,14/213,20/03/2015,Contractors costs ,Programmes ,Hopkins Van Mil,Leap seconds dialogue project,"1,541.00"
BIS,NMO,13/02/15,20/03/2015,Contractors costs ,Regulation ,Lancashire County Council,Contractors costs,174.15
BIS,NMO,033,20/03/2015,Contractors costs ,Certification Services ,Legal Metrology Ltd,Auditing services ,522.15
BIS,NMO,034,20/03/2015,Contractors costs ,Certification Services ,Legal Metrology Ltd,Auditing services ,737.29
BIS,NMO,032,20/03/2015,Contractors costs ,Certification Services ,Legal Metrology Ltd,Auditing services ,"1,140.05"
BIS,NMO,031,20/03/2015,Contractors costs ,Certification Services ,Legal Metrology Ltd,Training services ,"1,750.00"
BIS,NMO,1316,20/03/2015,Contractors costs ,Certification Services ,LMCS,Auditing services ,764.64
BIS,NMO,1317,20/03/2015,Contractors costs ,Certification Services ,LMCS,Auditing services ,746.57
BIS,NMO,6986129/15,20/03/2015,Rates,Estates ,London Bor Richmond upon Thames,Rates,"118,503.00"
BIS,NMO,SI-1973,20/03/2015,Laboratory Testing ,Enforcement ,LUX-TSI Limited,Sample testing ,"10,052.50"
BIS,NMO,SI-1974,20/03/2015,Laboratory Testing ,Enforcement ,LUX-TSI Limited,Sample testing ,"10,742.50"
BIS,NMO,127427,20/03/2015,Telecommunications ,Corporate Services ,Maintel Voice & Data Limited,Calls & line rental,"1,708.40"
BIS,NMO,0396055,20/03/2015,Calibrating Equipment ,Certification Services ,Mettler-Toledo Ltd,Weights for resale ,-9.06
BIS,NMO,0410296,20/03/2015,Calibrating Equipment ,Certification Services ,Mettler-Toledo Ltd,Weights for resale ,"1,092.35"
BIS,NMO,O333002,20/03/2015,Contractors costs ,Certification Services ,Omega,Auditor travel costs ,302.93
BIS,NMO,278823179,20/03/2015,Scientific Equipment ,Certification Services ,R S Components Limited,Scientific equipment ,50.66
BIS,NMO,L6689,20/03/2015,Furniture,Estates ,Rainbow Office Design Ltd,Furniture,328.80
BIS,NMO,082583,20/03/2015,Professional Bodies Subscriptions ,Estates ,RICS,Professional body membership,360.00
BIS,NMO,5500497,20/03/2015,Laboratory Testing ,Enforcement ,"Royal Botanic Gardens, Kew",Sample testing ,"21,900.00"
BIS,NMO,GBE188987,20/03/2015,Laboratory Testing ,Utilities ,SGS United Kingdom Ltd,Meter testing ,"23,853.74"
BIS,NMO,TL098647,20/03/2015,Contractors costs ,Regulation ,Sir y Fflint Flintshire County Council,Contractors costs,"1,000.00"
BIS,NMO,12/03/15,20/03/2015,Water,Estates ,Thames Water Utilities Ltd,Water charges ,"3,016.10"
BIS,NMO,30634532,20/03/2015,Rent,Estates ,The Crown Estate,Rent for Bushy House ,500.00
BIS,NMO,15/03/15,20/03/2015,Courier Services,Enforcement ,Tnt International,Courier services,"1,700.00"
BIS,NMO,994658,20/03/2015,IT Services,Corporate Services ,Triad Group Plc,IT services ,"3,360.00"
BIS,NMO,1790041438,20/03/2015,NMS Science Programmes ,Programmes ,TUV SUD NEL Ltd,Engineering & Flow Programme ,"14,000.00"
BIS,NMO,1790041410,20/03/2015,NMS Science Programmes ,Programmes ,TUV SUD NEL Ltd,Engineering & Flow Programme ,"328,900.00"
BIS,NMO,1790041440,20/03/2015,NMS Science Programmes ,Programmes ,TUV SUD NEL Ltd,Engineering & Flow Programme ,"99,800.00"
BIS,NMO,101003347,20/03/2015,Calibrating Equipment ,Certification Services ,Vaisala Oyj ,Equipment calibration,"1,430.00"
BIS,NMO,X687923,20/03/2015,Computer Peripherals ,Corporate Services ,XMA Limited,Computer Peripherals,"2,226.78"
BIS,NMO,X691323,20/03/2015,Computer Peripherals ,Corporate Services ,XMA Limited,Computer Peripherals,234.00
BIS,NMO,X702401,20/03/2015,Computer Peripherals ,Corporate Services ,XMA Limited,Computer Peripherals,46.96
BIS,NMO,118002957835,23/03/2015,Laboratory Testing ,Enforcement ,Thunen Institute of Wood Research,Sample testing ,102.89
BIS,NMO,28215746,27/03/2015,Building Advisors,Estates ,AECOM Prof Services LLP,Project Management services ,"11,250.00"
BIS,NMO,28215789,27/03/2015,Building Advisors,Estates ,AECOM Prof Services LLP,Cost Management services,"7,500.00"
BIS,NMO,F2186754,27/03/2015,Publications,Certification Services ,Agora Business Publications LLP,Health & Safety publication,84.30
BIS,NMO,90400442,27/03/2015,Hire of Office Equipment ,Corporate Services ,Amey Community Ltd,Hire of watercoolers ,"1,329.05"
BIS,NMO,90404203,27/03/2015,Building Construction ,Estates ,Amey Community Ltd,Estates repairs and renewals ,"3,121.73"
BIS,NMO,90404186,27/03/2015,Building Construction ,Estates ,Amey Community Ltd,Estates repairs and renewals ,"60,656.76"
BIS,NMO,90406445,27/03/2015,Building Construction ,Estates ,Amey Community Ltd,Estates repairs and renewals ,"31,297.12"
BIS,NMO,90404189,27/03/2015,Plant & Machinery ,Estates ,Amey Community Ltd,Estates repairs and renewals ,"39,116.41"
BIS,NMO,90405717,27/03/2015,Building Construction ,Estates ,Amey Community Ltd,Estates repairs and renewals ,"7,108.49"
BIS,NMO,90404251,27/03/2015,Building Construction ,Estates ,Amey Community Ltd,Estates repairs and renewals ,"1,921.62"
BIS,NMO,90406242,27/03/2015,Building Construction ,Estates ,Amey Community Ltd,Estates repairs and renewals ,"59,301.14"
BIS,NMO,90405621,27/03/2015,Plant & Machinery ,Estates ,Amey Community Ltd,Estates repairs and renewals ,"35,042.36"
BIS,NMO,90404395,27/03/2015,Building Construction ,Estates ,Amey Community Ltd,Estates repairs and renewals ,656.84
BIS,NMO,90405715,27/03/2015,Building Construction ,Estates ,Amey Community Ltd,Estates repairs and renewals ,"2,287.48"
BIS,NMO,90405720,27/03/2015,Building Construction ,Estates ,Amey Community Ltd,Estates repairs and renewals ,"4,074.23"
BIS,NMO,90406444,27/03/2015,Building Construction ,Estates ,Amey Community Ltd,Estates repairs and renewals ,"1,380.60"
BIS,NMO,90404085,27/03/2015,Building Construction ,Estates ,Amey Community Ltd,Estates repairs and renewals ,"41,050.38"
BIS,NMO,90404192,27/03/2015,Building Construction ,Estates ,Amey Community Ltd,Estates repairs and renewals ,"12,742.64"
BIS,NMO,90404196,27/03/2015,Building Construction ,Estates ,Amey Community Ltd,Estates repairs and renewals ,"29,235.38"
BIS,NMO,90404190,27/03/2015,Building Construction ,Estates ,Amey Community Ltd,Estates repairs and renewals ,"5,388.32"
BIS,NMO,90404402,27/03/2015,Building Construction ,Estates ,Amey Community Ltd,Estates repairs and renewals ,"12,737.48"
BIS,NMO,90405632,27/03/2015,Building Construction ,Estates ,Amey Community Ltd,Estates repairs and renewals ,827.29
BIS,NMO,90405712,27/03/2015,Building Construction ,Estates ,Amey Community Ltd,Estates repairs and renewals ,"1,332.02"
BIS,NMO,90406234,27/03/2015,Building Construction ,Estates ,Amey Community Ltd,Estates repairs and renewals ,"41,289.30"
BIS,NMO,90402212,27/03/2015,Building Construction ,Estates ,Amey Community Ltd,Estates repairs and renewals ,"9,812.65"
BIS,NMO,29704612,27/03/2015,Stationery,Corporate Services ,Banner Business Services Ltd,Stationery,175.50
BIS,NMO,6057219,27/03/2015,Training ,Enforcement ,Bond Solon Limited,Training ,505.00
BIS,NMO,6057216,27/03/2015,Training ,Enforcement ,Bond Solon Limited,Training ,505.00
BIS,NMO,6057218,27/03/2015,Training ,Enforcement ,Bond Solon Limited,Training ,505.00
BIS,NMO,6057220,27/03/2015,Training ,Enforcement ,Bond Solon Limited,Training ,505.00
BIS,NMO,5158250,27/03/2015,Training ,Corporate Services ,CIPFA,Training ,224.25
BIS,NMO,5158250,27/03/2015,Training ,Corporate Services ,CIPFA,Training ,224.25
BIS,NMO,5158250,27/03/2015,Training ,Certification Services ,CIPFA,Training ,224.26
BIS,NMO,5158250,27/03/2015,Training ,Certification Services ,CIPFA,Training ,224.26
BIS,NMO,5158250,27/03/2015,Training ,Certification Services ,CIPFA,Training ,224.26
BIS,NMO,5158250,27/03/2015,Training ,Certification Services ,CIPFA,Training ,224.26
BIS,NMO,5158250,27/03/2015,Training ,Programmes ,CIPFA,Training ,"2,325.48"
BIS,NMO,5158250,27/03/2015,Training ,Regulation ,CIPFA,Training ,224.27
BIS,NMO,09966765,27/03/2015,Gas ,Estates ,Corona Energy Limited,Gas supplied to NMO,"2,968.44"
BIS,NMO,PK082871,27/03/2015,Training ,Corporate Services ,DODS,Training ,295.00
BIS,NMO,32279,27/03/2015,Calibrating Equipment ,Certification Services ,Electronic Test & Calibration,Equipment calibration,195.82
BIS,NMO,45053087,27/03/2015,Postage ,Corporate Services ,Francotyp - Postalia Limited,Postage ,"1,000.00"
BIS,NMO,2356238167,27/03/2015,Car Hire & Leasing ,Certification Services ,Hertz UK Limited,Car hire,82.08
BIS,NMO,2356239592,27/03/2015,Car Hire & Leasing ,Utilities ,Hertz UK Limited,Car hire,89.04
BIS,NMO,1003480474,27/03/2015,Laboratory Testing ,Certification Services ,Intertek Testing & Certification Ltd,Sample testing ,975.00
BIS,NMO,1003409392,27/03/2015,Laboratory Testing ,Certification Services ,Intertek Testing & Certification Ltd,Sample testing ,"1,450.00"
BIS,NMO,1003409444,27/03/2015,Laboratory Testing ,Certification Services ,Intertek Testing & Certification Ltd,Sample testing ,500.00
BIS,NMO,035,27/03/2015,Contractors costs ,Certification Services ,Legal Metrology Ltd,Auditing services ,"1,044.81"
BIS,NMO,14076,27/03/2015,Contractors costs ,Certification Services ,LegMetConsult,Auditing services ,328.35
BIS,NMO,64559,27/03/2015,Conferences & Exhibitions ,Programmes ,Lensbury,Conferences & exhibition services ,-869.23
BIS,NMO,64559,27/03/2015,Conferences & Exhibitions ,Programmes ,Lensbury,Conferences & exhibition services ,"5,215.40"
BIS,NMO,50384402,27/03/2015,NMS Science Programmes ,Programmes ,LGC Ltd,Innovation R&D Programme ,"260,371.00"
BIS,NMO,50384940,27/03/2015,NMS Science Programmes ,Programmes ,LGC Ltd,Government Chemist Programme,"275,173.00"
BIS,NMO,50384938,27/03/2015,NMS Science Programmes ,Programmes ,LGC Ltd,Chem & Bio Programme  ,"207,746.00"
BIS,NMO,50384939,27/03/2015,NMS Science Programmes ,Programmes ,LGC Ltd,Chem & Bio Programme  ,"179,012.00"
BIS,NMO,50384937,27/03/2015,NMS Science Programmes ,Programmes ,LGC Ltd,Chem & Bio Programme  ,"371,989.00"
BIS,NMO,1318,27/03/2015,Contractors costs ,Certification Services ,LMCS,Auditing services ,530.45
BIS,NMO,1319,27/03/2015,Contractors costs ,Certification Services ,LMCS,Auditing services ,373.80
BIS,NMO,12037,27/03/2015,Conferences & Exhibitions ,Programmes ,Macdonald Hotels,Conferences & exhibition services ,"1,775.65"
BIS,NMO,8500433673,27/03/2015,Contractors costs ,Regulation ,Manchester City Council,Contractors costs,"1,000.00"
BIS,NMO,302,27/03/2015,Training ,Corporate Services ,Mental Health Trainers & Associates ,Training,210.00
BIS,NMO,4111,27/03/2015,Training ,Corporate Services ,MyCSP Ltd,Training ,250.00
BIS,NMO,C10709,27/03/2015,NMS Science Programmes ,Programmes ,NPL Management Ltd,Innovation R&D Programme ,235.13
BIS,NMO,C10737,27/03/2015,NMS Science Programmes ,Programmes ,NPL Management Ltd,Innovation R&D Programme ,"314,310.45"
BIS,NMO,C10722,27/03/2015,NMS Science Programmes ,Programmes ,NPL Management Ltd,Innovation R&D Programme ,"139,609.77"
BIS,NMO,C10727,27/03/2015,NMS Science Programmes ,Programmes ,NPL Management Ltd,Innovation R&D Programme ,"196,813.80"
BIS,NMO,C10725,27/03/2015,NMS Science Programmes ,Programmes ,NPL Management Ltd,AIR Programme ,"120,490.76"
BIS,NMO,C10715,27/03/2015,NMS Science Programmes ,Programmes ,NPL Management Ltd,AIR Programme ,"237,431.50"
BIS,NMO,C10726,27/03/2015,NMS Science Programmes ,Programmes ,NPL Management Ltd,AIR Programme ,"291,218.20"
BIS,NMO,C10734,27/03/2015,NMS Science Programmes ,Programmes ,NPL Management Ltd,Chem & Bio Programme  ,"286,847.80"
BIS,NMO,C10718,27/03/2015,NMS Science Programmes ,Programmes ,NPL Management Ltd,Chem & Bio Programme  ,"99,958.77"
BIS,NMO,C10710,27/03/2015,NMS Science Programmes ,Programmes ,NPL Management Ltd,Chem & Bio Programme  ,"4,300.27"
BIS,NMO,C10717,27/03/2015,NMS Science Programmes ,Programmes ,NPL Management Ltd,Engineering & Flow Programme ,"68,718.41"
BIS,NMO,C10733,27/03/2015,NMS Science Programmes ,Programmes ,NPL Management Ltd,Engineering & Flow Programme ,"252,717.34"
BIS,NMO,C10719,27/03/2015,NMS Science Programmes ,Programmes ,NPL Management Ltd,Engineering & Flow Programme ,"46,818.43"
BIS,NMO,C10728,27/03/2015,NMS Science Programmes ,Programmes ,NPL Management Ltd,Engineering & Flow Programme ,"335,206.02"
BIS,NMO,C10720,27/03/2015,NMS Science Programmes ,Programmes ,NPL Management Ltd,Materials & Modelling Programme ,"34,690.83"
BIS,NMO,C10713,27/03/2015,NMS Science Programmes ,Programmes ,NPL Management Ltd,Materials & Modelling Programme ,"168,894.52"
BIS,NMO,C10732,27/03/2015,NMS Science Programmes ,Programmes ,NPL Management Ltd,Materials & Modelling Programme ,"60,911.10"
BIS,NMO,C10736,27/03/2015,NMS Science Programmes ,Programmes ,NPL Management Ltd,Materials & Modelling Programme ,"326,183.81"
BIS,NMO,56063,27/03/2015,NMS Science Programmes ,Programmes ,NPL Management Ltd,Knowledge Exchange Programme ,"-10,000.00"
BIS,NMO,C10735,27/03/2015,NMS Science Programmes ,Programmes ,NPL Management Ltd,Knowledge Exchange Programme ,"340,796.96"
BIS,NMO,C10685,27/03/2015,NMS Science Programmes ,Programmes ,NPL Management Ltd,EMT Programme ,"308,215.74"
BIS,NMO,C10731,27/03/2015,NMS Science Programmes ,Programmes ,NPL Management Ltd,EMT Programme ,"309,014.63"
BIS,NMO,C10712,27/03/2015,NMS Science Programmes ,Programmes ,NPL Management Ltd,EMT Programme ,"45,066.62"
BIS,NMO,C10716,27/03/2015,NMS Science Programmes ,Programmes ,NPL Management Ltd,EMT Programme ,"442,830.05"
BIS,NMO,56058,27/03/2015,Electricity ,Estates ,NPL Management Ltd,Electricity ,"10,162.54"
BIS,NMO,1327707,27/03/2015,Contractors costs ,Regulation ,Norfolk County Council,Contractors costs,750.00
BIS,NMO,109332,27/03/2015,Contractors costs ,Regulation ,Northumberland County Council,Contractors costs,"1,000.00"
BIS,NMO,O334457,27/03/2015,Contractors costs ,Certification Services ,Omega,Auditor travel costs ,189.22
BIS,NMO,O334679,27/03/2015,Contractors costs ,Certification Services ,Omega,Auditor travel costs ,937.46
BIS,NMO,O334661,27/03/2015,Contractors costs ,Certification Services ,Omega,Auditor travel costs ,180.26
BIS,NMO,DE3858426,27/03/2015,Website Maintenance ,Corporate Services ,RM Education Ltd,IT Website Maintenance,107.10
BIS,NMO,7227946,27/03/2015,Laboratory Testing ,Enforcement ,Teknologisk Institut,Sample testing ,"4,830.00"
BIS,NMO,1790042191,27/03/2015,NMS Science Programmes ,Programmes ,TUV SUD NEL Ltd,Engineering & Flow Programme ,"63,000.00"
BIS,NMO,1790042173,27/03/2015,NMS Science Programmes ,Programmes ,TUV SUD NEL Ltd,Engineering & Flow Programme ,"118,550.00"
BIS,NMO,1790042157,27/03/2015,NMS Science Programmes ,Programmes ,TUV SUD NEL Ltd,Engineering & Flow Programme ,"324,078.00"
BIS,NMO,SBS_11926,27/03/2015,HR Online / Internal Audit ,Corporate Services ,UK Shared Business Services Ltd,HR Services,"1,500.00"
BIS,NMO,SBS_11769,27/03/2015,HR Online / Internal Audit ,Corporate Services ,UK Shared Business Services Ltd,HR Services ,"3,000.00"
BIS,NMO,14426,27/03/2015,Calibrating Equipment ,Certification Services ,Wragg Bros Ltd,Equipment calibration ,105.00
BIS,NMO,X706713,27/03/2015,Computer Peripherals ,Corporate Services ,XMA Limited,Computer Peripherals,"1,598.40"
BIS,NMO,X724720,27/03/2015,Computer Peripherals ,Corporate Services ,XMA Limited,Computer Peripherals,144.00
BIS,NMO,X696373,27/03/2015,Computer Peripherals ,Corporate Services ,XMA Limited,Computer Peripherals,490.08
BIS,NMO,X695888,27/03/2015,Computer & office additions ,Corporate Services ,XMA Limited,IT equipment ,680.14
BIS,NMO,X718299,27/03/2015,Computer & office additions ,Corporate Services ,XMA Limited,IT equipment ,"3,064.09"
BIS,NMO,X724750,27/03/2015,Computer & office additions ,Corporate Services ,XMA Limited,IT equipment ,"7,459.70"
BIS,NMO,X757550,27/03/2015,Computer & office additions ,Corporate Services ,XMA Limited,IT equipment ,"6,960.00"
